bitfinex/quotes_ETHUSD_20250519
["timestamp","ask_amount","ask_price","bid_price","bid_amount"]
[1747668549442,4.08216837,2449.7,2449.3,0.7553]
[1747668549647,4.08263248,2449.4,2449.3,0.7553]
[1747668549964,4.08263248,2449.4,2449.1,8.261]
[1747668549965,4.08296586,2449.2,2449.1,8.261]
[1747668550140,4.08296586,2449.2,2449.1,16.261]
[1747668550341,4.08313257,2449.1,2449.0,6.43048726]
[1747668550665,9.0593,2450.0,2449.2,4.08287421]
[1747668550890,4.08205728,2449.8,2449.4,0.7553]
[1747668551237,4.08197879,2449.8,2449.4,0.7553]
[1747668551431,4.08214469,2449.7,2449.4,0.7553]
[1747668553252,4.08231499,2449.6,2449.4,0.7553]
[1747668553451,4.08220523,2449.7,2449.4,1.23911739]
[1747668554268,4.0824658,2449.5,2449.4,1.23911739]
[1747668554451,4.0824658,2449.5,2449.4,0.7553]
[1747668554661,4.08263248,2449.4,2449.2,0.7538]
[1747668554866,4.08197311,2449.8,2449.0,15.83427479]
[1747668554867,4.08304231,2449.2,2449.0,16.58807479]
[1747668555067,4.08289377,2449.3,2449.0,16.58807479]
[1747668555266,4.08296586,2449.2,2449.1,8.0]
[1747668555863,4.08287724,2449.3,2449.1,8.0]
[1747668556181,4.08296586,2449.2,2449.1,10.45880748]
[1747668556479,4.08096637,2450.4,2449.1,10.45880748]
[1747668556775,4.08179925,2449.9,2449.1,10.45880748]
[1747668556990,4.08263674,2449.4,2449.1,10.45880748]
[1747668557152,4.08263674,2449.4,2449.2,3.11300892]
[1747668557470,12.34246606,2450.1,2449.2,3.11300892]
[1747668557647,12.34246606,2450.1,2449.1,8.0]
[1747668557648,4.08279916,2449.3,2449.1,8.0]
[1747668557971,4.08296586,2449.2,2449.1,8.13058048]
[1747668558172,4.08280121,2449.3,2449.1,8.13058048]
[1747668558575,4.08273121,2449.4,2449.1,8.13058048]
[1747668558761,4.08263942,2449.4,2449.2,2.17380674]
[1747668559272,4.08250248,2449.5,2449.3,0.7716]
[1747668559475,4.08198659,2449.8,2449.2,2.17380674]
[1747668559639,4.08279916,2449.3,2449.2,2.17380674]
[1747668560065,4.08270018,2449.4,2449.2,2.17380674]
[1747668560265,4.90603589,2450.0,2449.3,1.09454067]
[1747668560484,4.08206353,2449.8,2449.4,0.04082186]
[1747668560649,4.08229915,2449.6,2449.5,0.8058]
[1747668560974,4.08220315,2449.7,2449.5,0.8058]
[1747668561179,4.08229915,2449.6,2449.5,0.8058]
[1747668564067,13.10339915,2449.6,2449.5,0.13058048]
[1747668564978,4.08296586,2449.2,2449.1,8.10863411]
[1747668565954,4.08296586,2449.2,2449.1,0.10863411]
[1747668565955,4.84306586,2449.2,2449.1,0.10863411]
[1747668566987,4.08313257,2449.1,2449.0,6.43048726]
[1747668567191,12.34413257,2449.1,2449.0,6.43048726]
[1747668567556,8.261,2449.5,2449.0,7.85654118]
[1747668567763,4.08313257,2449.1,2449.0,15.85654118]
[1747668568161,4.08313257,2449.1,2449.0,15.98713495]
[1747668568964,4.08313257,2449.1,2449.0,14.56108103]
[1747668572295,4.08313257,2449.1,2449.0,15.34898103]
[1747668573496,4.08313257,2449.1,2449.0,6.56108103]
[1747668574005,4.08305669,2449.2,2449.0,7.36718103]
[1747668574168,4.08313257,2449.1,2449.0,7.36718103]
[1747668574367,4.08303846,2449.2,2449.0,16.10680432]
[1747668574587,4.08313257,2449.1,2449.0,16.10680432]
[1747668576103,4.08306835,2449.2,2449.1,8.0]
[1747668576306,4.08306835,2449.2,2449.0,16.10680432]
[1747668576307,4.08306835,2449.2,2449.0,8.10680432]
[1747668576499,4.0828308,2449.3,2449.0,8.10680432]
[1747668576702,16.525,2449.7,2449.1,14.10214234]
[1747668576905,4.08244217,2449.6,2449.1,14.10214234]
[1747668577103,0.02,2450.0,2449.3,4.08270673]
[1747668577311,4.08227291,2449.7,2449.2,0.95059377]
[1747668577476,0.02,2450.0,2449.2,0.95059377]
[1747668577477,4.08276302,2449.4,2449.3,17.78012828]
[1747668577989,4.08276302,2449.4,2449.3,8.0]
[1747668578183,4.08276302,2449.4,2449.3,8.13059377]
[1747668579718,4.83576302,2449.4,2449.3,0.13059377]
[1747668579915,4.83576302,2449.4,2449.1,0.10863411]
[1747668579916,4.08296586,2449.2,2449.0,6.43048726]
[1747668580226,4.08313257,2449.1,2449.0,6.43048726]
[1747668580378,4.08313257,2449.1,2449.0,7.16420459]
[1747668581588,4.08313257,2449.1,2449.0,7.29480183]
[1747668583324,4.08313257,2449.1,2449.0,6.5610845]
[1747668584830,4.08313257,2449.1,2449.0,14.5610845]
[1747668585016,4.08267206,2449.4,2449.0,14.43048726]
[1747668585344,4.08285032,2449.3,2449.0,14.43048726]
[1747668586426,4.08285032,2449.3,2449.0,14.53912137]
[1747668586628,4.08285032,2449.3,2449.1,1.45391214]
[1747668587498,4.08313257,2449.1,2449.0,6.53912137]
[1747668589189,4.08313257,2449.1,2449.0,6.56108259]
[1747668590526,4.08313257,2449.1,2449.0,6.43048726]
[1747668591223,12.34412598,2449.2,2449.0,6.43048726]
[1747668591717,4.85968861,2449.6,2449.0,6.43048726]
[1747668591894,4.08305488,2449.2,2449.1,8.0]
[1747668594528,4.08288427,2449.3,2449.1,8.0]
[1747668595032,4.08269961,2449.4,2449.2,0.7999]
[1747668595033,4.08265143,2449.4,2449.2,0.7999]
[1747668595209,4.08265143,2449.4,2449.3,0.87999]
[1747668595404,4.08279916,2449.3,2449.2,0.7999]
[1747668595726,4.08279916,2449.3,2449.1,8.0]
[1747668595727,4.08296586,2449.2,2449.1,8.0]
[1747668600225,4.08313257,2449.1,2449.0,14.53912137]
[1747668600927,4.08313257,2449.1,2449.0,14.43048726]
[1747668601635,4.08313257,2449.1,2449.0,6.43048726]
[1747668601837,4.90713257,2449.1,2449.0,6.43048726]
[1747668602337,5.45713257,2449.1,2449.0,6.43048726]
[1747668602731,23.08813257,2449.1,2449.0,6.43048726]
[1747668603243,26.16017744,2449.1,2449.0,6.43048726]
[1747668603614,23.08813257,2449.1,2449.0,6.43048726]
[1747668603803,39.60913257,2449.1,2449.0,6.43048726]
[1747668604011,39.05913257,2449.1,2449.0,6.43048726]
[1747668604436,4.90713257,2449.1,2449.0,6.43048726]
[1747668605011,0.824,2449.1,2449.0,6.43048726]
[1747668605211,12.99711122,2449.5,2449.0,7.07644118]
[1747668605412,4.73402999,2449.5,2449.1,8.0]
[1747668605610,0.65153988,2449.5,2449.1,8.0]
[1747668605817,7.16701516,2449.7,2449.1,8.0]
[1747668605818,4.08296586,2449.2,2449.1,8.0]
[1747668607835,7.16701516,2449.7,2449.1,8.0]
[1747668608153,4.08245595,2449.6,2449.3,0.8244]
[1747668608325,9.0177,2449.9,2449.3,0.8244]
[1747668608529,8.258,2449.8,2449.3,0.8244]
[1747668608848,4.08222853,2449.7,2449.3,0.8244]
[1747668609053,4.08231484,2449.6,2449.3,0.8244]
[1747668609215,4.08222813,2449.7,2449.4,0.22674487]
[1747668609411,4.8549696,2450.2,2449.7,8.813]
[1747668609617,4.8549696,2450.2,2449.7,4.89503911]
[1747668609618,4.0813696,2450.2,2449.7,4.89503911]
[1747668609840,17.632,2450.5,2450.0,8.0]
[1747668609841,8.262,2450.5,2450.0,8.0]
[1747668610150,4.08117514,2450.3,2450.1,1.613]
[1747668610447,0.65153988,2450.6,2450.1,0.813]
[1747668610448,4.08105901,2450.4,2450.1,0.813]
[1747668610826,4.08079983,2450.5,2450.1,0.813]
[1747668611414,0.65153988,2450.6,2450.2,12.08120539]
[1747668611753,0.65153988,2450.6,2450.5,12.86999983]
[1747668611929,0.65153988,2450.6,2450.5,10.90239998]
[1747668612130,0.65153988,2450.6,2450.5,14.98319981]
[1747668612731,0.65153988,2450.6,2450.5,23.24019981]
[1747668612926,0.65153988,2450.6,2450.5,23.79019981]
[1747668613144,1.29491661,2451.3,2450.6,8.0]
[1747668613321,1.29491661,2451.3,2451.0,8.0]
[1747668614053,5.37439418,2451.3,2451.0,8.0]
[1747668614521,1.29491661,2451.3,2451.0,8.0]
[1747668614849,1.29491661,2451.3,2451.0,12.07989096]
[1747668615250,1.29491661,2451.3,2451.0,8.0]
[1747668615433,5.37449373,2451.3,2451.1,1.626]
[1747668615635,1.29491661,2451.3,2451.1,1.626]
[1747668616034,5.37450925,2451.3,2451.1,1.626]
[1747668616922,1.29491661,2451.3,2451.1,1.626]
[1747668617646,1.29491661,2451.3,2451.2,4.86583446]
[1747668617856,1.61375076,2451.7,2451.3,8.0]
[1747668618023,1.61375076,2451.7,2451.2,6.35577104]
[1747668618024,1.61375076,2451.7,2451.6,8.7862]
[1747668620258,1.61375076,2451.7,2451.6,9.08640427]
[1747668621986,1.61375076,2451.7,2451.6,13.1653731]
[1747668622257,1.61375076,2451.7,2451.6,12.05344158]
[1747668622761,1.61375076,2451.7,2451.6,16.13241041]
[1747668622926,1.61375076,2451.7,2451.6,16.33261916]
[1747668623740,1.61375076,2451.7,2451.6,11.26724158]
[1747668624039,1.61375076,2451.7,2451.6,13.1566731]
[1747668624262,1.24445077,2451.7,2451.6,13.1566731]
[1747668624850,1.24445077,2451.7,2451.6,9.07770427]
[1747668625164,1.24445077,2451.7,2451.3,8.25]
[1747668625165,4.07930162,2451.4,2451.3,0.7775]
[1747668625465,1.24445077,2451.7,2450.9,0.7775]
[1747668625466,4.07909435,2451.6,2450.9,0.7775]
[1747668625663,1.24445077,2451.7,2451.3,8.0]
[1747668625839,4.82977109,2451.9,2451.2,4.07963445]
[1747668625840,4.07846975,2451.9,2451.4,0.7775]
[1747668626224,4.07854868,2451.9,2451.4,8.7775]
[1747668626425,4.07858195,2451.9,2451.4,8.7775]
[1747668626663,4.07858195,2451.9,2451.5,10.11058166]
[1747668626825,4.0786654,2451.8,2451.5,2.11058166]
[1747668627561,0.02,2452.0,2451.5,2.11058166]
[1747668627764,0.02,2452.0,2451.4,8.7775]
[1747668627765,4.07909496,2451.6,2451.4,8.7775]
[1747668627941,4.07889166,2451.7,2451.4,8.7775]
[1747668628341,0.02,2452.0,2451.4,8.7775]
[1747668628554,4.07894295,2451.7,2451.4,8.7775]
[1747668628961,4.07846975,2451.9,2451.4,10.48015]
[1747668629257,0.02,2452.0,2451.4,10.48015]
[1747668629258,4.07905664,2451.6,2451.4,10.48015]
[1747668629559,4.07905664,2451.6,2451.4,2.48015]
[1747668630153,4.07888095,2451.7,2451.4,2.48015]
[1747668630526,4.07888095,2451.7,2451.2,16.248]
[1747668630934,4.07897544,2451.6,2451.2,16.248]
[1747668631148,4.07889457,2451.7,2451.2,16.248]
[1747668631557,4.07901077,2451.6,2451.2,16.248]
[1747668632262,4.07888699,2451.7,2451.2,16.248]
[1747668632447,4.07888699,2451.7,2451.3,2.0327789]
[1747668633171,0.7591,2451.9,2451.3,2.0327789]
[1747668633361,4.07864188,2451.8,2451.3,14.11217321]
[1747668633672,4.07864188,2451.8,2451.3,6.11223459]
[1747668634045,4.07864188,2451.8,2451.3,10.0327789]
[1747668634233,4.0787054,2451.8,2451.4,0.8223]
[1747668634438,4.0787054,2451.8,2451.5,0.69345335]
[1747668635060,4.07857122,2451.9,2451.5,0.69345335]
[1747668635257,4.07864034,2451.8,2451.5,0.69345335]
[1747668635464,4.07897679,2451.6,2451.4,0.8223]
[1747668635666,4.07897679,2451.6,2450.9,1.25840983]
[1747668635667,4.07996736,2451.0,2450.9,1.25840983]
[1747668635849,4.0807251,2450.6,2450.4,0.86212998]
[1747668636167,0.7959,2451.1,2450.4,0.34067197]
[1747668636374,4.08059808,2450.7,2450.4,0.34067197]
[1747668636571,0.7959,2451.1,2450.5,8.0]
[1747668636741,4.0799444,2451.1,2450.7,0.7681]
[1747668636945,4.08001653,2451.0,2450.7,0.7681]
[1747668637266,9.0136,2451.3,2450.6,0.8]
[1747668637267,13.09307019,2451.3,2450.6,0.8]
[1747668637572,4.08015182,2450.9,2450.5,0.778]
[1747668638139,4.08031799,2450.8,2450.5,9.026]
[1747668638359,4.08031799,2450.8,2450.5,8.248]
[1747668638360,4.08063331,2450.6,2450.5,8.248]
[1747668638768,4.08063331,2450.6,2450.5,16.248]
[1747668639142,4.85617425,2450.8,2450.5,8.0]
[1747668639342,4.08021424,2450.9,2450.5,8.9305115]
[1747668639567,9.0528,2451.5,2450.8,8.0]
[1747668639878,4.08005882,2451.0,2450.7,0.8184]
[1747668640080,4.080179,2450.9,2450.7,10.2262705]
[1747668640446,9.0528,2451.5,2450.7,10.2262705]
[1747668640647,4.07996829,2451.0,2450.7,10.2262705]
[1747668640943,9.0528,2451.5,2450.7,9.4078705]
[1747668641169,4.08013382,2450.9,2450.8,0.1305115]
[1747668641971,4.83823382,2450.9,2450.8,0.1305115]
[1747668642172,15.37823382,2450.9,2450.8,0.1305115]
[1747668642488,14.82823382,2450.9,2450.8,0.1305115]
[1747668642647,4.08030031,2450.8,2450.2,0.7698]
[1747668642849,4.08064532,2450.6,2450.2,8.7698]
[1747668643058,4.08064532,2450.6,2450.3,1.31623995]
[1747668643261,4.08103737,2450.4,2450.2,0.7698]
[1747668643872,4.08127937,2450.3,2450.1,0.31123248]
[1747668644189,4.08088139,2450.5,2450.0,4.0816085]
[1747668644347,4.08069576,2450.6,2449.9,8.0]
[1747668644553,0.7522,2450.7,2450.1,0.13051807]
[1747668644779,4.08129948,2450.2,2450.1,0.13051807]
[1747668644984,4.0812166,2450.3,2450.1,0.13051807]
[1747668645793,4.08129948,2450.2,2450.1,0.13051807]
[1747668645999,4.89639948,2450.2,2450.1,0.13051807]
[1747668647956,4.08129948,2450.2,2450.1,0.13051807]
[1747668648150,4.08122429,2450.3,2449.9,0.10992047]
[1747668648455,4.08104729,2450.4,2449.9,12.71911737]
[1747668648697,8.243,2450.5,2450.1,8.0]
[1747668648865,4.08097749,2450.4,2450.1,8.0]
[1747668649061,4.08088514,2450.5,2449.9,16.88140158]
[1747668649258,9.0657,2450.7,2450.0,0.7558]
[1747668649582,4.08122821,2450.3,2450.1,1.76372016]
[1747668649767,13.14618038,2450.7,2449.9,0.63740158]
[1747668649768,9.0657,2450.7,2449.9,0.63740158]
[1747668649967,4.08104225,2450.4,2449.9,0.63740158]
[1747668650181,4.08108056,2450.4,2449.9,8.63740158]
[1747668650390,4.08108056,2450.4,2449.9,12.71918979]
[1747668650768,4.08108056,2450.4,2450.0,12.08160024]
[1747668650955,4.08070046,2450.6,2450.2,8.0]
[1747668651151,9.0657,2450.7,2450.2,8.0]
[1747668651492,9.0657,2450.7,2450.2,12.08128015]
[1747668651692,4.08039891,2450.8,2450.2,8.7878]
[1747668651992,0.818,2450.9,2450.4,4.08096163]
[1747668651993,4.89822689,2450.9,2450.4,4.08096163]
[1747668652305,0.7639,2451.3,2450.8,4.08022874]
[1747668652591,4.07954215,2451.3,2450.9,8.0]
[1747668652788,4.07963932,2451.2,2450.8,8.0]
[1747668653085,4.07971809,2451.2,2450.8,8.0]
[1747668653288,4.07971809,2451.2,2450.9,2.65804545]
[1747668653492,4.07948574,2451.3,2450.9,2.65804545]
[1747668653695,4.07936475,2451.4,2451.0,0.7869]
[1747668653895,4.07920068,2451.5,2451.0,0.7869]
[1747668654196,4.07923093,2451.5,2451.1,8.34449455]
[1747668654382,4.07913522,2451.5,2451.1,8.34449455]
[1747668655192,4.07931468,2451.4,2451.1,8.34449455]
[1747668655391,4.07913522,2451.5,2451.1,8.34449455]
[1747668655392,4.07921786,2451.5,2451.1,0.34449455]
[1747668655591,4.07921786,2451.5,2451.1,8.34449455]
[1747668655795,4.07921786,2451.5,2451.2,1.32112608]
[1747668655796,4.07946803,2451.3,2451.2,1.32112608]
[1747668655993,0.8167,2451.9,2451.0,8.7869]
[1747668655994,4.07963446,2451.2,2451.0,8.7869]
[1747668656200,4.0799155,2451.1,2450.9,8.0]
[1747668656724,4.07972446,2451.2,2450.9,8.0]
[1747668656904,4.07972446,2451.2,2450.9,12.0981927]
[1747668657583,0.793,2451.4,2450.9,12.0981927]
[1747668657784,4.07927429,2451.5,2451.0,4.07984967]
[1747668657998,4.07889896,2451.7,2451.3,8.0]
[1747668658171,4.07921203,2451.5,2451.2,8.0]
[1747668658372,4.07930162,2451.4,2451.3,0.13046253]
[1747668659411,4.0792131,2451.5,2451.3,0.13046253]
[1747668660181,4.07904209,2451.6,2451.3,0.13046253]
[1747668660182,4.07887984,2451.7,2451.3,0.13046253]
[1747668660400,4.07895017,2451.7,2451.3,0.49843092]
[1747668660595,4.07754744,2452.5,2451.4,8.0]
[1747668660917,4.07914961,2451.5,2451.3,0.79819607]
[1747668661114,4.07918837,2451.5,2451.4,0.87981961]
[1747668661415,4.07943638,2451.4,2451.0,8.0]
[1747668661592,0.8115,2451.6,2451.0,8.0]
[1747668661794,4.07904627,2451.6,2451.2,8.0]
[1747668662011,4.07904627,2451.6,2451.3,1.20796687]
[1747668662184,4.0792053,2451.5,2451.3,1.20796687]
[1747668662387,4.07904627,2451.6,2451.3,1.20796687]
[1747668662583,4.07904627,2451.6,2451.1,4.07971047]
[1747668663033,4.07904627,2451.6,2451.2,4.07961883]
[1747668663519,4.07888922,2451.7,2451.2,4.21008403]
[1747668663749,0.8205,2451.9,2451.2,4.21008403]
[1747668663952,0.02,2452.0,2451.7,8.0]
[1747668664124,0.02,2452.0,2451.9,8.0]
[1747668664325,0.02,2452.0,2451.9,12.07846975]
[1747668664527,4.07647466,2453.1,2452.2,8.0]
[1747668664730,4.85517223,2453.2,2452.2,8.0]
[1747668664955,0.7787,2453.2,2452.3,1.0072752]
[1747668665256,4.07763823,2452.4,2452.3,0.1304652]
[1747668667048,0.7787,2452.6,2451.9,0.3062279]
[1747668667220,4.07806629,2452.2,2451.8,8.7999]
[1747668667429,4.07815343,2452.1,2451.8,8.7999]
[1747668667640,4.07815343,2452.1,2451.9,3.15419]
[1747668667849,4.07788829,2452.3,2451.9,3.15419]
[1747668667850,4.0780612,2452.2,2451.9,3.15419]
[1747668668049,4.07818601,2452.1,2451.9,3.15419]
[1747668668229,4.07830342,2452.0,2451.9,3.15419]
[1747668668434,4.07839957,2452.0,2451.8,8.30525103]
[1747668668958,4.07821116,2452.1,2451.8,8.30525103]
[1747668669255,4.07782392,2452.3,2451.8,12.38381171]
[1747668669457,4.07834946,2452.0,2451.8,8.30525103]
[1747668669658,4.07804546,2452.2,2451.7,8.20234166]
[1747668669964,4.07896883,2451.6,2451.5,9.0472]
[1747668670268,4.07930162,2451.4,2451.3,0.53092887]
[1747668670474,4.07930162,2451.4,2451.3,0.10992047]
[1747668671630,4.07843916,2452.0,2451.3,0.10992047]
[1747668671937,4.07872063,2451.8,2451.4,8.0]
[1747668672259,4.07868107,2451.8,2451.3,12.18929267]
[1747668672457,8.235,2452.3,2451.6,8.0]
[1747668672760,8.235,2452.3,2451.8,8.0]
[1747668672761,4.07803624,2452.2,2451.8,8.0]
[1747668672917,12.31283584,2452.3,2451.8,4.07863445]
[1747668673122,8.235,2452.3,2451.6,4.84391773]
[1747668673321,4.07849285,2451.9,2451.6,0.765]
[1747668673670,4.07870625,2451.8,2451.5,8.0]
[1747668673872,4.07896883,2451.6,2451.5,2.03193945]
[1747668674041,4.07896883,2451.6,2451.5,8.0]
[1747668674442,4.07887238,2451.7,2451.5,8.0]
[1747668674781,12.31765573,2452.4,2451.5,8.0]
[1747668674782,4.07896883,2451.6,2451.5,8.0]
[1747668675774,4.07876621,2451.8,2451.4,8.24]
[1747668675983,4.07856448,2451.9,2451.4,12.31928267]
[1747668676133,4.07838928,2452.0,2451.5,5.71896398]
[1747668676339,4.07821703,2452.1,2451.6,4.07891731]
[1747668676540,21.68947194,2452.6,2451.6,4.07891731]
[1747668676541,4.07753093,2452.5,2451.7,0.04078374]
[1747668676886,4.07730571,2452.6,2452.0,4.07822338]
[1747668677033,4.07738934,2452.6,2452.1,4.0781241]
[1747668677237,4.07716832,2452.7,2452.2,4.07787316]
[1747668677449,4.07716832,2452.7,2452.3,8.0]
[1747668677649,4.07757001,2452.5,2452.1,8.0]
[1747668677871,4.07765377,2452.4,2452.2,1.20781381]
[1747668678074,4.07697325,2452.8,2452.2,1.20781381]
[1747668678275,4.07776433,2452.4,2452.2,1.20781381]
[1747668678571,16.474,2452.9,2452.2,1.20781381]
[1747668678776,4.07718113,2452.7,2452.2,1.20781381]
[1747668678977,0.7651,2453.0,2452.3,4.63665373]
[1747668679176,4.07715068,2452.7,2452.3,0.55893399]
[1747668680456,4.07715068,2452.7,2452.4,0.13039795]
[1747668680977,0.8135,2453.4,2452.6,4.07730571]
[1747668681135,0.8135,2453.4,2452.6,0.50315037]
[1747668681340,4.0762837,2453.3,2452.8,8.0]
[1747668681553,4.0762837,2453.3,2452.8,12.1176555]
[1747668681879,4.0762837,2453.3,2452.8,13.74666858]
[1747668682041,4.07604819,2453.4,2452.8,5.74666858]
[1747668682241,4.07614887,2453.3,2452.9,12.07678714]
[1747668682581,0.8087,2453.7,2453.1,4.07647466]
[1747668682791,9.0407,2454.0,2453.2,8.0]
[1747668682957,4.07582572,2453.5,2453.2,8.0]
[1747668683296,4.07664084,2453.0,2452.9,0.7645]
[1747668683441,4.07664084,2453.0,2452.8,1.66977854]
[1747668683651,0.8087,2453.4,2452.7,8.10992047]
[1747668683852,4.07661055,2453.1,2452.7,8.10992047]
[1747668684149,0.8087,2453.4,2452.7,8.10992047]
[1747668684679,0.8096,2453.7,2452.9,8.0]
[1747668684880,4.07573351,2453.6,2453.2,8.0]
[1747668685060,8.232,2453.9,2453.2,8.0]
[1747668685278,4.07614233,2453.3,2453.2,8.0]
[1747668685482,4.07606664,2453.4,2453.2,8.0]
[1747668685853,4.07586787,2453.5,2453.2,8.0]
[1747668686278,4.07614233,2453.3,2453.2,8.0]
[1747668686448,4.07647466,2453.1,2452.8,8.9945]
[1747668686658,4.07614233,2453.3,2452.9,8.0]
[1747668686866,4.07621075,2453.3,2452.9,8.0]
[1747668687198,4.07607066,2453.4,2453.0,4.07661677]
[1747668687606,4.07607066,2453.4,2452.9,12.07671988]
[1747668687773,4.07615761,2453.3,2452.9,12.07671988]
[1747668687958,9.0212,2453.7,2453.0,0.13037054]
[1747668688157,4.07647466,2453.1,2453.0,0.13037054]
[1747668688359,4.07627991,2453.3,2453.0,0.13037054]
[1747668688557,4.07637965,2453.2,2453.0,0.13037054]
[1747668688872,4.07638853,2453.2,2453.0,0.13037054]
[1747668689187,4.07647466,2453.1,2453.0,0.13037054]
[1747668689773,4.07672132,2453.0,2452.8,0.7625]
[1747668689956,4.07672132,2453.0,2452.8,4.02061899]
[1747668690292,4.07665991,2453.0,2452.8,4.02061899]
[1747668690594,4.07680704,2452.9,2452.7,8.0]
[1747668691165,4.07680704,2452.9,2452.6,26.6473]
[1747668691166,0.7995,2453.2,2452.4,0.10992047]
[1747668691372,4.07747196,2452.5,2452.4,0.10992047]
[1747668691609,4.0770765,2452.8,2452.4,4.18750899]
[1747668691764,0.7995,2453.2,2452.5,13.24900915]
[1747668692101,0.7995,2453.2,2452.5,9.1716509]
[1747668692251,4.07708086,2452.8,2452.5,1.1716509]
[1747668692456,4.0772542,2452.7,2452.5,0.7529]
[1747668692695,4.0770707,2452.8,2452.5,0.7529]
[1747668692895,4.07687404,2452.9,2452.5,0.7529]
[1747668693062,4.07687404,2452.9,2452.5,4.83036253]
[1747668693258,4.07638092,2453.2,2452.7,8.0]
[1747668693463,4.07608134,2453.4,2453.0,8.0]
[1747668693712,4.07643823,2453.2,2452.9,0.8114]
[1747668693884,4.84096357,2453.6,2452.9,0.8114]
[1747668693885,4.07615507,2453.3,2452.9,4.88816975]
[1747668694210,4.07615507,2453.3,2452.9,8.8114]
[1747668694369,4.07597619,2453.4,2452.9,0.8114]
[1747668694698,4.07662542,2453.1,2452.9,0.8114]
[1747668694885,4.07664084,2453.0,2452.8,1.33809505]
[1747668695085,4.07664084,2453.0,2452.8,1.20771976]
[1747668695301,4.07656318,2453.1,2452.8,1.20771976]
[1747668695512,4.07675602,2453.0,2452.8,1.20771976]
[1747668695811,4.07636552,2453.2,2452.9,8.92077198]
[1747668696035,2.447,2456.2,2452.9,8.92077198]
[1747668696036,9.0243,2453.9,2453.0,0.7948]
[1747668696164,4.07573329,2453.6,2453.2,8.0]
[1747668696511,4.07582527,2453.5,2453.2,8.0]
[1747668696680,4.86949488,2453.9,2453.3,1.623]
[1747668696866,4.07589913,2453.5,2453.3,1.623]
[1747668697208,4.07597619,2453.4,2453.3,1.623]
[1747668697365,4.07589913,2453.5,2453.3,1.623]
[1747668698919,4.07517946,2453.9,2453.4,0.8087]
[1747668699209,4.07439015,2454.4,2453.6,8.7857]
[1747668699503,0.7994,2454.6,2454.0,8.0]
[1747668699724,12.30231975,2455.0,2454.0,4.07488561]
[1747668699862,8.229,2455.0,2454.2,12.07458052]
[1747668700063,4.07397274,2454.7,2454.2,9.20745805]
[1747668700298,4.07409574,2454.6,2454.2,9.20745805]
[1747668700483,4.07426432,2454.5,2454.2,1.20745805]
[1747668700863,4.07410936,2454.6,2454.2,1.20745805]
[1747668701115,4.07389442,2454.7,2454.3,8.0]
[1747668701420,4.07373626,2454.8,2454.5,8.0]
[1747668701760,4.07357619,2454.9,2454.5,8.0]
[1747668701983,4.07361544,2454.9,2454.5,8.30292818]
[1747668702188,4.07249032,2455.5,2454.5,8.30292818]
[1747668702465,4.07361516,2454.9,2454.5,8.30292818]
[1747668702663,4.07349354,2454.9,2454.5,9.42891192]
[1747668703166,4.07366057,2454.8,2454.5,9.42891192]
[1747668703367,4.07372908,2454.8,2454.5,9.42891192]
[1747668703775,4.07384811,2454.7,2454.5,9.42891192]
[1747668703978,4.07398354,2454.6,2454.5,8.0]
[1747668704198,4.07365162,2454.8,2454.0,9.0338]
[1747668704505,4.07439636,2454.4,2454.1,8.0]
[1747668704659,4.07439636,2454.4,2454.2,1.70338]
[1747668704867,4.07434898,2454.4,2454.2,1.70338]
[1747668705174,4.07423852,2454.5,2454.2,1.70338]
[1747668705372,8.226,2455.0,2454.1,8.0]
[1747668705593,4.07439502,2454.4,2454.1,8.0]
[1747668705791,8.226,2455.0,2454.1,0.30503545]
[1747668705792,4.07460723,2454.3,2454.1,0.30503545]
[1747668705990,4.07365162,2454.8,2454.0,8.8058]
[1747668706183,4.07441547,2454.4,2454.2,8.0]
[1747668706503,4.07481357,2454.1,2454.0,8.8058]
[1747668706693,4.07473092,2454.2,2454.0,8.8058]
[1747668707399,0.7904,2454.9,2454.0,12.88075226]
[1747668707604,4.07422942,2454.5,2454.0,12.88075226]
[1747668707768,0.7904,2454.9,2454.2,8.0]
[1747668707971,4.07439986,2454.4,2454.2,8.0]
[1747668708277,4.07439049,2454.4,2454.2,8.0]
[1747668708463,4.07421122,2454.5,2454.2,8.0]
[1747668708670,4.07367284,2454.8,2454.2,8.0]
[1747668708671,4.07365162,2454.8,2454.2,8.0]
[1747668708872,4.07441877,2454.4,2454.2,8.0]
[1747668709175,4.07448152,2454.3,2454.2,9.1641622]
[1747668709388,4.07466258,2454.2,2454.0,9.11234066]
[1747668709698,4.07454093,2454.3,2454.0,9.11234066]
[1747668710222,4.07365162,2454.8,2454.2,8.0]
[1747668710420,4.07394935,2454.7,2454.2,4.07457177]
[1747668710707,4.07398585,2454.6,2454.2,8.0]
[1747668710879,4.07422354,2454.5,2454.3,1.20747477]
[1747668711071,4.07440027,2454.4,2454.0,9.11234066]
[1747668711266,4.07397216,2454.7,2454.2,8.0]
[1747668711785,4.07406406,2454.6,2454.2,8.0]
[1747668711982,8.9907,2455.1,2454.3,1.3377689]
[1747668712298,4.07431551,2454.4,2454.3,0.13029675]
[1747668713805,4.07424699,2454.5,2454.0,13.18722662]
[1747668714197,4.07437044,2454.4,2454.0,9.11234066]
[1747668714401,4.07448905,2454.3,2454.0,9.11234066]
[1747668714702,4.07471326,2454.2,2454.0,9.11234066]
[1747668714883,4.07471326,2454.2,2454.1,0.81123336]
[1747668715807,4.07456537,2454.3,2454.1,0.81123336]
[1747668716008,4.07464754,2454.2,2454.1,0.94154317]
[1747668716322,0.7548,2454.6,2454.1,0.13030981]
[1747668716514,4.07464754,2454.2,2454.1,0.13030981]
[1747668716709,4.07365162,2454.8,2454.1,0.13030981]
[1747668717025,4.07464754,2454.2,2454.1,0.13030981]
[1747668719422,4.07464754,2454.2,2454.1,3.18849388]
[1747668719628,4.07464754,2454.2,2454.1,0.13030981]
[1747668719828,4.07464754,2454.2,2453.8,3.05818407]
[1747668719829,4.07514568,2453.9,2453.8,3.05818407]
[1747668720042,4.07514568,2453.9,2453.6,0.10992047]
[1747668720250,8.223,2454.4,2453.8,3.05818407]
[1747668720409,12.29746323,2454.4,2454.1,3.05818407]
[1747668720615,9.0061,2454.7,2454.2,8.0]
[1747668720921,4.07464754,2454.2,2454.1,0.7647]
[1747668721122,8.224,2454.7,2454.0,8.0]
[1747668721438,8.224,2454.7,2454.3,3.05818407]
[1747668721642,12.29772999,2454.8,2454.3,3.87528407]
[1747668721842,4.07356156,2454.9,2454.6,3.05818407]